bitfinex-derivatives/quotes_BTCF0:USTF0_20250509
["timestamp","ask_amount","ask_price","bid_price","bid_amount"]
[1746793838838,0.69317619,103130.0,103120.0,0.24205049]
[1746793839034,0.75437619,103130.0,103120.0,0.24205049]
[1746793839240,0.75437619,103130.0,103120.0,0.01501805]
[1746793839439,0.81177619,103130.0,103120.0,0.01501805]
[1746793839634,0.1939778,103120.0,103110.0,0.11817614]
[1746793839841,0.43222499,103120.0,103110.0,0.68813566]
[1746793840143,0.37102499,103120.0,103110.0,0.78510535]
[1746793840343,0.1939778,103120.0,103110.0,0.78510535]
[1746793841246,0.1939778,103120.0,103110.0,0.78510382]
[1746793841639,0.1949778,103120.0,103110.0,0.79310382]
[1746793841845,0.1959778,103120.0,103110.0,0.79310382]
[1746793842150,0.1959778,103120.0,103110.0,0.95310382]
[1746793842348,0.1959778,103120.0,103110.0,1.01150382]
[1746793843243,0.1911263,103120.0,103110.0,0.85150324]
[1746793845349,0.1911263,103120.0,103110.0,0.85150326]
[1746793846348,0.31167349,103120.0,103110.0,0.85150326]
[1746793846536,0.37207349,103120.0,103110.0,0.85150326]
[1746793847250,0.37207349,103120.0,103110.0,0.85150402]
[1746793847451,0.37207349,103120.0,103110.0,0.65750732]
[1746793847647,0.43267349,103120.0,103110.0,0.49070402]
[1746793848151,0.59267349,103120.0,103110.0,0.49070402]
[1746793848444,0.59267349,103120.0,103110.0,0.29670732]
[1746793848649,0.65017349,103120.0,103110.0,0.29670732]
[1746793849042,1.01097349,103120.0,103110.0,0.2967085]
[1746793849242,0.65017349,103120.0,103110.0,0.2967085]
[1746793849447,1.01097349,103120.0,103110.0,0.2967085]
[1746793849943,0.65017349,103120.0,103110.0,0.2967085]
[1746793850142,1.01097349,103120.0,103110.0,0.2967085]
[1746793850352,1.01097349,103120.0,103110.0,0.1823085]
[1746793850750,1.01097349,103120.0,103110.0,0.2391085]
[1746793851052,1.01097349,103120.0,103110.0,0.23910886]
[1746793851750,1.01097349,103120.0,103110.0,0.25427189]
[1746793852843,1.01097349,103120.0,103110.0,0.31397189]
[1746793855449,0.59267349,103120.0,103110.0,0.50796859]
[1746793855653,0.53207349,103120.0,103110.0,0.50796859]
[1746793855855,0.53207349,103120.0,103110.0,0.86876859]
[1746793856146,0.37207349,103120.0,103110.0,0.86876859]
[1746793856451,0.37207349,103120.0,103110.0,0.50796859]
[1746793856653,0.37207349,103120.0,103110.0,0.86876859]
[1746793858451,0.37207349,103120.0,103110.0,0.86876758]
[1746793858644,0.43077349,103120.0,103110.0,0.86876758]
[1746793859055,0.2515263,103120.0,103110.0,0.86876758]
[1746793859250,0.2515263,103120.0,103110.0,1.02876758]
[1746793860256,0.2515263,103120.0,103110.0,1.02876619]
[1746793860848,0.24667491,103120.0,103110.0,1.02876619]
[1746793861256,0.24667491,103120.0,103110.0,1.02876626]
[1746793861657,0.3672221,103120.0,103110.0,1.02876626]
[1746793862155,0.3672221,103120.0,103110.0,0.86876626]
[1746793862861,0.24667491,103120.0,103110.0,0.86876626]
[1746793863163,0.30577491,103120.0,103110.0,0.86876626]
[1746793863353,0.4263221,103120.0,103110.0,0.86876626]
[1746793863863,0.4263221,103120.0,103110.0,0.86876652]
[1746793864761,0.24667491,103120.0,103110.0,0.86876652]
[1746793865560,0.24667491,103120.0,103110.0,0.86876647]
[1746793866362,0.24667491,103120.0,103110.0,0.86876643]
[1746793866562,0.24667491,103120.0,103110.0,0.86876419]
[1746793866961,0.24667491,103120.0,103110.0,0.8687641]
[1746793867953,0.24767491,103120.0,103110.0,0.8627641]
[1746793869670,0.24867491,103120.0,103110.0,0.8617641]
[1746793870060,0.24867491,103120.0,103110.0,0.86176392]
[1746793870658,0.30777491,103120.0,103110.0,0.86176392]
[1746793870857,0.4283221,103120.0,103110.0,0.86176392]
[1746793872463,0.4283221,103120.0,103110.0,0.86176394]
[1746793874572,0.30777491,103120.0,103110.0,0.86176394]
[1746793876673,0.4283221,103120.0,103110.0,0.86176394]
[1746793876869,0.4283221,103120.0,103110.0,0.63964394]
[1746793877066,0.4839221,103120.0,103110.0,0.44564724]
[1746793877269,0.4839221,103120.0,103110.0,0.63964394]
[1746793877660,0.4839221,103120.0,103110.0,1.00044394]
[1746793877864,0.4911921,103120.0,103110.0,1.00044468]
[1746793879378,0.31504491,103120.0,103110.0,1.00044525]
[1746793879873,0.31019349,103120.0,103110.0,1.00044459]
[1746793880068,0.25109349,103120.0,103110.0,1.00044459]
[1746793880279,0.25109349,103120.0,103110.0,1.16044459]
[1746793881072,0.25109349,103120.0,103110.0,1.16044438]
[1746793882872,0.25109349,103120.0,103110.0,1.14528302]
[1746793883170,0.01127,103120.0,103110.0,1.47797063]
[1746793883673,0.0039935,103120.0,103110.0,1.47797063]
[1746793884266,0.0039935,103120.0,103110.0,1.35742344]
[1746793884466,0.0039935,103120.0,103110.0,1.47797063]
[1746793884677,0.4061299,103140.0,103130.0,0.193959]
[1746793884866,0.4061299,103140.0,103130.0,0.70839949]
[1746793885063,0.3576422,103140.0,103130.0,0.88469949]
[1746793885261,0.3026422,103140.0,103130.0,1.14167859]
[1746793885662,0.3026422,103140.0,103130.0,1.15683901]
[1746793885866,0.3076422,103140.0,103130.0,1.15783901]
[1746793886473,0.3126422,103140.0,103130.0,1.15883901]
[1746793889576,0.3126422,103140.0,103130.0,1.1685414]
[1746793892077,0.3126422,103140.0,103130.0,1.15338091]
[1746793892277,0.3126422,103140.0,103130.0,1.16853904]
[1746793895577,0.0702,103140.0,103130.0,2.78908623]
[1746793895877,0.01,103140.0,103130.0,3.14988623]
[1746793896268,0.00514974,103140.0,103130.0,3.14988623]
[1746793896774,0.00514974,103140.0,103130.0,3.1347281]
[1746793896974,0.00514974,103140.0,103130.0,3.24988469]
[1746793898186,0.0548,103140.0,103130.0,3.39534454]
[1746793898771,0.0548,103140.0,103130.0,3.39534451]
[1746793899484,0.0548,103140.0,103130.0,3.29534451]
[1746793900078,0.2487402,103140.0,103130.0,3.29534451]
[1746793900284,0.2487402,103140.0,103130.0,3.13534451]
[1746793900483,0.2487402,103140.0,103130.0,3.13534456]
[1746793900786,0.2487402,103140.0,103130.0,3.01479737]
[1746793901191,0.2487402,103140.0,103130.0,3.01479735]
[1746793902484,0.2487402,103140.0,103130.0,2.87631735]
[1746793902678,0.2487402,103140.0,103130.0,3.01439735]
[1746793902980,0.3069402,103140.0,103130.0,3.01439735]
[1746793904081,0.3069402,103140.0,103130.0,3.01439771]
[1746793907989,0.3069402,103140.0,103130.0,2.87631771]
[1746793908193,0.3069402,103140.0,103130.0,3.01427771]
[1746793911890,0.30208987,103140.0,103130.0,3.01427771]
[1746793912389,0.30208987,103140.0,103130.0,3.1348249]
[1746793914787,0.30208987,103140.0,103130.0,3.13482497]
[1746793917899,0.30208987,103140.0,103130.0,3.01427778]
[1746793918195,0.04994967,103140.0,103130.0,3.13482497]
[1746793918387,0.33170547,103150.0,103140.0,0.1939402]
[1746793918699,0.13927597,103150.0,103140.0,0.96224436]
[1746793918900,0.08137597,103150.0,103140.0,0.97740478]
[1746793919106,0.08137597,103150.0,103140.0,1.23436507]
[1746793919706,0.08237597,103150.0,103140.0,1.23436507]
[1746793920011,0.08237597,103150.0,103140.0,1.2192081]
[1746793920210,0.08237597,103150.0,103140.0,1.23436215]
[1746793920909,0.08437597,103150.0,103140.0,1.23436215]
[1746793922910,0.01027,103150.0,103140.0,1.38271476]
[1746793923409,0.07410597,103170.0,103160.0,0.1939026]
[1746793923711,0.13360597,103170.0,103160.0,2.80331544]
[1746793923899,0.13360597,103170.0,103160.0,3.99803586]
[1746793924104,0.13360597,103170.0,103160.0,4.15498675]
[1746793924298,0.07410597,103170.0,103160.0,4.35191874]
[1746793924508,0.07710597,103170.0,103160.0,4.35191874]
[1746793925109,7e-08,103170.0,103160.0,4.88836593]
[1746793925313,0.09882271,103180.0,103170.0,0.1938838]
[1746793925608,0.09882271,103180.0,103170.0,1.38008021]
[1746793925813,0.09882271,103180.0,103170.0,1.28008021]
[1746793926016,0.09882271,103180.0,103170.0,2.87700291]
[1746793926220,0.09882271,103180.0,103170.0,3.05216333]
[1746793926410,0.3103463,103190.0,103180.0,0.193865]
[1746793926610,0.3103463,103190.0,103180.0,0.83979464]
[1746793927109,0.1165,103190.0,103180.0,0.93671734]
[1746793927303,0.2500463,103190.0,103180.0,0.93671734]
[1746793927506,0.0562,103190.0,103180.0,0.93671734]
[1746793927912,0.3620875,103200.0,103190.0,0.1938463]
[1746793928217,0.4202875,103200.0,103190.0,0.75885594]
[1746793928513,0.4202875,103200.0,103190.0,0.85576925]
[1746793930212,0.4252875,103200.0,103190.0,0.85676925]
[1746793930717,0.4252875,103200.0,103190.0,0.85676877]
[1746793931221,0.4252875,103200.0,103190.0,0.86650727]
[1746793931515,0.4252875,103200.0,103190.0,2.36650727]
[1746793931908,0.4252875,103200.0,103190.0,2.46650727]
[1746793932113,0.4252875,103200.0,103190.0,2.36650727]
[1746793932312,0.4252875,103200.0,103190.0,2.36650728]
[1746793932608,0.4252875,103200.0,103190.0,2.36650686]
[1746793933010,0.17446,103200.0,103190.0,2.58705405]
[1746793933214,0.3682875,103200.0,103190.0,2.58705405]
[1746793933409,0.17446,103200.0,103190.0,2.58705405]
[1746793933614,0.3682875,103200.0,103190.0,2.58705405]
[1746793934013,0.3682875,103200.0,103190.0,2.36650686]
[1746793935317,0.4246875,103200.0,103190.0,2.36650686]
[1746793936018,0.54523469,103200.0,103190.0,2.36650672]
[1746793936221,0.4246875,103200.0,103190.0,2.35676814]
[1746793937425,0.4246875,103200.0,103190.0,2.3567682]
[1746793938212,0.4246875,103200.0,103190.0,2.35676821]
[1746793939124,0.4246875,103200.0,103190.0,2.36657618]
[1746793940020,0.4246875,103200.0,103190.0,2.48712337]
[1746793941025,0.23086,103200.0,103190.0,2.48712337]
[1746793941231,0.23086,103200.0,103190.0,2.64712337]
[1746793941517,0.3682875,103200.0,103190.0,2.13386149]
[1746793941726,0.90813469,103200.0,103190.0,0.46690779]
[1746793941921,0.90813469,103200.0,103190.0,0.27306149]
[1746793942223,0.90813469,103200.0,103190.0,0.12803086]
[1746793942224,0.95754215,103200.0,103190.0,0.12803086]
[1746793942421,1.07808934,103200.0,103190.0,0.11288268]
[1746793942624,1.07808934,103200.0,103190.0,0.26515345]
[1746793942819,1.07808934,103200.0,103190.0,0.25000268]
[1746793943021,1.07808934,103200.0,103190.0,0.26515363]
[1746793943221,0.95754215,103200.0,103190.0,0.12803363]
[1746793943524,1.07808934,103200.0,103190.0,0.12803363]
[1746793943723,0.71728934,103200.0,103190.0,0.12803363]
[1746793944317,0.59674215,103200.0,103190.0,0.12803363]
[1746793944514,0.71728934,103200.0,103190.0,0.12803363]
[1746793944713,1.07808934,103200.0,103190.0,0.12803363]
[1746793944914,0.71728934,103200.0,103190.0,0.12803363]
[1746793945921,1.07808934,103200.0,103190.0,0.12803363]
[1746793946122,0.71728934,103200.0,103190.0,0.12803377]
[1746793946421,1.07808934,103200.0,103190.0,0.12803377]
[1746793947025,0.71728934,103200.0,103190.0,0.12803377]
[1746793947221,1.07808934,103200.0,103190.0,0.12803377]
[1746793947727,0.59674215,103200.0,103190.0,0.12803377]
[1746793947928,1.07808934,103200.0,103190.0,0.12803374]
[1746793948127,0.71728934,103200.0,103190.0,0.12803374]
[1746793948520,1.07808934,103200.0,103190.0,0.12803374]
[1746793948922,0.70733469,103200.0,103190.0,0.12803374]
[1746793949323,1.06813469,103200.0,103190.0,0.12803374]
[1746793950838,0.70733469,103200.0,103190.0,0.12803374]
[1746793951220,1.06813469,103200.0,103190.0,0.12803374]
[1746793951425,0.9475875,103200.0,103190.0,0.12803374]
[1746793951730,1.07781889,103200.0,103190.0,0.12803374]
[1746793952030,0.71701889,103200.0,103190.0,0.12803374]
[1746793952227,1.07781889,103200.0,103190.0,0.12803374]
[1746793952824,1.13841889,103200.0,103190.0,0.12803374]
[1746793953223,1.13841889,103200.0,103190.0,0.12803381]
[1746793954928,1.13115889,103200.0,103190.0,0.12803381]
[1746793956429,1.13115889,103200.0,103190.0,0.12803363]
[1746793958531,1.13115889,103200.0,103190.0,0.12803364]
[1746793958833,1.13841889,103200.0,103190.0,0.12803364]
[1746793959627,1.13841889,103200.0,103190.0,0.11288268]
[1746793959835,1.13841889,103200.0,103190.0,0.12803366]
[1746793960025,0.193865,103180.0,103170.0,0.3608]
[1746793960326,0.31441219,103180.0,103170.0,0.8051838]
[1746793960533,0.48601219,103180.0,103170.0,0.8653838]
[1746793960831,0.48601219,103180.0,103170.0,0.96228771]
[1746793961131,0.64601219,103180.0,103170.0,0.96228771]
[1746793961831,0.64601219,103180.0,103170.0,0.71020391]
[1746793962033,1.00681219,103180.0,103170.0,0.29160391]
[1746793962423,0.64601219,103180.0,103170.0,0.15580391]
[1746793962627,1.00681219,103180.0,103170.0,0.09990391]
[1746793963024,0.1938838,103170.0,103160.0,0.16286421]
[1746793963225,1.06697818,103170.0,103160.0,0.10341591]
[1746793963423,1.16391018,103170.0,103160.0,0.10341591]
[1746793964138,1.16391018,103170.0,103160.0,0.11784927]
[1746793964523,0.1939026,103160.0,103150.0,0.19764542]
[1746793964725,0.78814979,103160.0,103150.0,0.19764542]
[1746793965029,0.88508979,103160.0,103150.0,0.19764542]
[1746793965229,1.04508979,103160.0,103150.0,0.19764542]
[1746793965429,1.04508979,103160.0,103150.0,0.16078532]
[1746793965827,1.04708979,103160.0,103150.0,0.16078532]
[1746793966033,1.05108979,103160.0,103150.0,0.16178532]
[1746793966331,1.05108979,103160.0,103150.0,0.12139042]
[1746793966530,0.1939214,103150.0,103140.0,0.24705678]
[1746793966732,0.73276859,103150.0,103140.0,0.24705678]
[1746793966934,0.73276859,103150.0,103140.0,0.30315678]
[1746793967234,0.89276859,103150.0,103140.0,0.0561]
[1746793967630,0.94896859,103150.0,103140.0,0.0561]
[1746793968528,0.4736214,103150.0,103140.0,0.70879109]
[1746793968723,0.3679214,103150.0,103140.0,0.76899109]
[1746793969131,0.60216859,103150.0,103140.0,0.57505089]
[1746793969644,1.08729984,103150.0,103140.0,0.15405089]
[1746793969933,0.96475265,103150.0,103140.0,0.0571]
[1746793971235,0.96875265,103150.0,103140.0,0.0581]
[1746793971633,0.96475265,103150.0,103140.0,0.0571]
[1746793971832,0.97275265,103150.0,103140.0,0.0581]
[1746793972435,0.97275265,103150.0,103140.0,0.07325945]
[1746793972635,0.97275265,103150.0,103140.0,0.13425945]
[1746793973138,0.61195265,103150.0,103140.0,0.44030942]
[1746793973339,0.96296859,103150.0,103140.0,0.44030942]
[1746793973532,0.8424214,103150.0,103140.0,0.44030942]
[1746793974343,0.5687214,103150.0,103140.0,0.44030942]
[1746793974835,0.6252214,103150.0,103140.0,0.44030942]
[1746793975034,0.74576859,103150.0,103140.0,0.44030942]
[1746793975436,0.80186859,103150.0,103140.0,0.44030942]
[1746793975740,0.44106859,103150.0,103140.0,0.44030942]
[1746793976438,0.2079214,103150.0,103140.0,0.44030942]
[1746793976639,0.2079214,103150.0,103140.0,0.80110942]
[1746793977842,0.2079214,103150.0,103140.0,2.30110942]
[1746793978143,0.2079214,103150.0,103140.0,2.46110942]
[1746793979234,0.2079214,103150.0,103140.0,2.30110942]
[1746793980044,0.2079214,103150.0,103140.0,2.42165661]
[1746793980341,0.2079214,103150.0,103140.0,2.55813661]
[1746793980836,0.2079214,103150.0,103140.0,2.43758942]
[1746793981438,0.2039214,103150.0,103140.0,2.43758942]
[1746793981644,0.1979214,103150.0,103140.0,2.43658942]
[1746793981838,0.2009214,103150.0,103140.0,2.43658942]
[1746793983145,0.2009214,103150.0,103140.0,2.59658942]
[1746793983746,0.2009214,103150.0,103140.0,2.59658679]
[1746793985145,0.2009214,103150.0,103140.0,2.43658679]
[1746793988047,0.2009214,103150.0,103140.0,2.55713398]
[1746793988549,0.2009214,103150.0,103140.0,2.43658679]
[1746793990749,0.2009214,103150.0,103140.0,2.43658663]
[1746793992951,0.2009214,103150.0,103140.0,0.93658663]
[1746793993847,0.007,103150.0,103140.0,1.05713382]
[1746793994352,0.00215035,103150.0,103140.0,1.21713382]
[1746793995151,0.00942035,103150.0,103140.0,1.21713382]
[1746793995951,0.00942035,103150.0,103140.0,1.31713257]
[1746793996352,0.00942035,103150.0,103140.0,1.41408457]
[1746793996650,0.193902,103170.0,103160.0,0.1939026]
[1746793996854,0.43811101,103180.0,103170.0,0.1938838]
[1746793997047,0.55001101,103180.0,103170.0,0.32583864]
[1746793997249,0.55001101,103180.0,103170.0,0.47718953]
[1746793997450,0.55001101,103180.0,103170.0,0.49234898]
[1746793997649,0.55001101,103180.0,103170.0,0.4923471]
[1746793997955,0.3018185,103180.0,103170.0,0.49434715]
[1746793998658,0.4158185,103180.0,103170.0,0.85514715]
[1746793999563,0.53636569,103180.0,103170.0,0.85514715]
[1746793999858,0.42236569,103180.0,103170.0,0.85514676]
[1746794000159,0.53476569,103180.0,103170.0,0.85514676]
[1746794000559,0.4142185,103180.0,103170.0,0.85514676]
[1746794001161,0.2048805,103180.0,103170.0,1.13569396]
[1746794002166,0.2048805,103180.0,103170.0,0.99026039]
[1746794002459,0.2048805,103180.0,103170.0,0.8697132]
[1746794002658,0.3207805,103180.0,103170.0,0.8697132]
[1746794002854,0.44132769,103180.0,103170.0,0.86971245]
[1746794003057,0.4807805,103180.0,103170.0,0.86971245]
[1746794004163,0.3207805,103180.0,103170.0,0.86971245]
[1746794006770,0.3147805,103180.0,103170.0,0.98925964]
[1746794006970,0.3187805,103180.0,103170.0,0.86871245]
[1746794010175,0.2028805,103180.0,103170.0,0.98925964]
[1746794010475,0.2028805,103180.0,103170.0,0.86871245]
[1746794010662,0.2607805,103180.0,103170.0,0.86871245]
[1746794011675,0.2607805,103180.0,103170.0,0.86871246]
[1746794012474,0.009,103180.0,103170.0,0.98925965]
[1746794012676,0.009,103180.0,103170.0,0.86871246]
[1746794012875,0.009,103180.0,103170.0,0.98925965]
[1746794013276,0.009,103180.0,103170.0,1.02871246]
[1746794013477,0.005,103180.0,103170.0,1.13410776]
[1746794013677,0.002,103180.0,103170.0,2.63310776]
[1746794013875,0.006,103180.0,103170.0,2.63310776]
[1746794014072,0.006,103180.0,103170.0,2.35256057]
[1746794014383,0.006,103180.0,103170.0,2.48825941]
[1746794014878,0.006,103180.0,103170.0,2.47310776]
[1746794015579,0.006,103180.0,103170.0,2.4882594]
[1746794015778,0.199865,103180.0,103170.0,2.4882594]
[1746794016178,0.006,103180.0,103170.0,2.4882594]
[1746794018082,0.199865,103180.0,103170.0,2.4882594]
[1746794018576,0.199865,103180.0,103170.0,2.47310776]
[1746794018780,0.199865,103180.0,103170.0,2.4882594]
[1746794019783,0.32041219,103180.0,103170.0,0.86771221]
[1746794020081,0.65271219,103180.0,103170.0,1.00351221]
[1746794020284,0.532165,103180.0,103170.0,2.50351221]
[1746794020883,0.532165,103180.0,103170.0,2.31331221]
[1746794021081,0.65271219,103180.0,103170.0,2.44907221]
[1746794021984,0.65271219,103180.0,103170.0,0.94907221]
[1746794022173,0.532165,103180.0,103170.0,0.94907264]
[1746794022976,0.532165,103180.0,103170.0,1.06961983]
[1746794023177,0.372165,103180.0,103170.0,1.00747264]
[1746794025881,0.314465,103180.0,103170.0,1.00747264]
[1746794026087,0.006,103180.0,103170.0,1.28801983]
[1746794026286,0.199865,103180.0,103170.0,1.28801983]
[1746794027088,0.199865,103180.0,103170.0,1.12801983]
[1746794030892,0.199865,103180.0,103170.0,1.12801899]
[1746794031480,0.006,103180.0,103170.0,1.12801899]
[1746794031681,0.199865,103180.0,103170.0,1.12801899]
[1746794032289,0.006,103180.0,103170.0,1.24856618]
[1746794032494,0.006,103180.0,103170.0,1.22801899]
[1746794034993,0.00115174,103180.0,103170.0,1.22801899]
[1746794035195,0.4073504,103190.0,103180.0,0.193865]
[1746794035493,0.4073504,103190.0,103180.0,0.80126342]
[1746794035993,0.4073504,103190.0,103180.0,0.91334557]
[1746794036494,0.4113504,103190.0,103180.0,0.91334557]
[1746794037090,0.4153504,103190.0,103180.0,0.91334557]
[1746794037296,0.4153504,103190.0,103180.0,0.79279838]
[1746794037503,0.4153504,103190.0,103180.0,0.91334557]
[1746794037689,0.3668847,103190.0,103180.0,0.91334557]
[1746794037889,0.3668847,103190.0,103180.0,0.91334507]
[1746794038697,0.12456,103190.0,103180.0,0.91334507]
[1746794039197,0.3184063,103190.0,103180.0,0.91334507]
[1746794039599,0.3184063,103190.0,103180.0,2.41334507]
[1746794039799,0.3184063,103190.0,103180.0,2.41334369]
[1746794041401,0.3184063,103190.0,103180.0,2.41334371]
[1746794044502,0.12456,103190.0,103180.0,2.41334371]
[1746794044703,0.3184063,103190.0,103180.0,2.41334371]
[1746794045694,0.3184063,103190.0,103180.0,2.37171977]
[1746794047318,0.3184063,103190.0,103180.0,2.29279652]
[1746794047604,0.3184063,103190.0,103180.0,2.37171977]
[1746794048103,0.3184063,103190.0,103180.0,2.42991977]
[1746794050506,0.3184063,103190.0,103180.0,2.35099653]
[1746794050707,0.3184063,103190.0,103180.0,2.42991978]
[1746794051205,0.4784063,103190.0,103180.0,2.42991978]
[1746794053112,0.4784063,103190.0,103180.0,0.92991978]
[1746794053601,0.4711463,103190.0,103180.0,0.92991978]
[1746794054010,0.4711463,103190.0,103180.0,1.29071978]
[1746794054202,0.3111463,103190.0,103180.0,1.29071978]
[1746794059014,0.3184063,103190.0,103180.0,1.29071978]
[1746794059315,0.4784063,103190.0,103180.0,2.71179653]
[1746794059501,0.4784063,103190.0,103180.0,2.79071978]
[1746794060413,0.4784063,103190.0,103180.0,1.29071978]
[1746794060805,0.55732955,103190.0,103180.0,1.21179653]
[1746794061005,0.61402955,103190.0,103180.0,1.34703653]
[1746794061213,0.5351063,103190.0,103180.0,1.29013653]
[1746794061413,0.5351063,103190.0,103180.0,1.29013681]
[1746794061608,0.61402955,103190.0,103180.0,1.09669681]
[1746794061914,0.61402955,103190.0,103180.0,1.23189681]
[1746794063909,0.61402955,103190.0,103180.0,1.28839681]
[1746794064615,0.6091815,103190.0,103180.0,1.28839681]
[1746794065010,0.6091815,103190.0,103180.0,1.2883973]
[1746794065213,0.53025825,103190.0,103180.0,1.3474973]
[1746794066010,0.53025825,103190.0,103180.0,0.9028323]
[1746794066209,0.68810475,103190.0,103180.0,0.1272323]
[1746794066407,0.6091815,103190.0,103180.0,0.1272323]
[1746794066615,0.6091815,103190.0,103180.0,0.1272342]
[1746794067112,0.68810475,103190.0,103180.0,0.1272342]
[1746794067307,1.04890475,103190.0,103180.0,0.1272342]
[1746794067507,0.9699815,103190.0,103180.0,0.1272342]
[1746794068415,1.04890475,103190.0,103180.0,0.1272342]
[1746794068615,1.04890475,103190.0,103180.0,0.0303115]
[1746794069318,1.12293832,103190.0,103180.0,0.0303115]
[1746794069520,1.04401507,103190.0,103180.0,0.0303115]
[1746794069709,0.96509182,103190.0,103180.0,0.0303115]
[1746794069912,1.04401507,103190.0,103180.0,0.0303115]
[1746794070106,1.04001507,103190.0,103180.0,0.0303115]
[1746794070311,1.04701507,103190.0,103180.0,0.03131231]
[1746794074323,1.14392707,103190.0,103180.0,0.03131231]
[1746794074523,1.22285032,103190.0,103180.0,0.03131231]
[1746794075322,1.14392707,103190.0,103180.0,0.03131231]
[1746794075720,1.14392707,103190.0,103180.0,0.01615945]
[1746794076121,1.14392707,103190.0,103180.0,0.03131231]
[1746794076636,0.78312707,103190.0,103180.0,0.03131231]
[1746794076828,1.14392707,103190.0,103180.0,0.03131231]
[1746794077123,1.14392707,103190.0,103180.0,0.08771231]
[1746794080520,1.04701507,103190.0,103180.0,0.08771231]
[1746794081428,1.04701507,103190.0,103180.0,0.37849062]
[1746794081623,0.96809182,103190.0,103180.0,0.49619062]
[1746794081821,0.62951507,103190.0,103180.0,0.85699062]
[1746794082924,0.68721507,103190.0,103180.0,0.85699062]
[1746794083422,0.68721507,103190.0,103180.0,0.85698939]
[1746794083617,0.68721507,103190.0,103180.0,0.30232439]
[1746794083819,0.68721507,103190.0,103180.0,0.43724439]
[1746794084623,0.60829182,103190.0,103180.0,0.43724439]
[1746794084831,0.60829182,103190.0,103180.0,0.49618939]
[1746794084832,0.68721507,103190.0,103180.0,0.49618939]
[1746794085835,0.68721507,103190.0,103180.0,0.48103776]
[1746794086039,0.6131815,103190.0,103180.0,0.49618985]
[1746794087936,0.47655825,103190.0,103180.0,0.49618985]
[1746794088142,0.5554815,103190.0,103180.0,0.49618985]
[1746794088335,0.47655825,103190.0,103180.0,0.49618985]
[1746794088536,0.5554815,103190.0,103180.0,0.49618985]
[1746794089943,0.62951507,103190.0,103180.0,0.49618985]
[1746794093032,0.62951507,103190.0,103180.0,0.49618987]
[1746794095145,0.55059182,103190.0,103180.0,0.49618987]
[1746794095344,0.62951507,103190.0,103180.0,0.49618987]
[1746794097947,0.65430421,103190.0,103180.0,0.49618987]
[1746794100149,0.49430421,103190.0,103180.0,0.49618987]
[1746794103757,0.49430421,103190.0,103180.0,0.49618984]
[1746794104949,0.49430421,103190.0,103180.0,0.30232484]
[1746794105152,0.71200421,103190.0,103180.0,0.49618984]
[1746794108458,0.71200421,103190.0,103180.0,0.30232484]
[1746794108946,0.71200421,103190.0,103180.0,0.14551153]
[1746794109146,1.07280421,103190.0,103180.0,0.14551153]
[1746794109752,1.15172746,103190.0,103180.0,0.14551153]
[1746794110158,1.07280421,103190.0,103180.0,0.14551153]
[1746794110753,1.15172746,103190.0,103180.0,0.14551153]
[1746794110954,1.07280421,103190.0,103180.0,0.14551153]
[1746794111858,1.07280421,103190.0,103180.0,0.33937653]
[1746794111859,0.99388096,103190.0,103180.0,0.33937653]
[1746794112061,1.07280421,103190.0,103180.0,0.20541153]
[1746794112357,1.07280421,103190.0,103180.0,0.20541229]
[1746794112754,1.07280421,103190.0,103180.0,0.14551229]
[1746794113155,1.15172746,103190.0,103180.0,0.08771229]
[1746794113354,1.07280421,103190.0,103180.0,0.08771229]
[1746794115461,0.71200421,103190.0,103180.0,0.08771229]
[1746794115663,1.07280421,103190.0,103180.0,0.08771229]
[1746794117758,1.07280421,103190.0,103180.0,0.14741229]
[1746794120167,1.07280421,103190.0,103180.0,0.1474127]
[1746794121267,1.07280421,103190.0,103180.0,0.2021127]
[1746794122971,1.07280421,103190.0,103180.0,0.20211185]
[1746794124570,1.07280421,103190.0,103180.0,0.20211235]
[1746794128271,1.07280421,103190.0,103180.0,0.20211237]
[1746794128967,1.15172746,103190.0,103180.0,0.20211237]
[1746794129373,1.07280421,103190.0,103180.0,0.20211237]
[1746794129870,1.07280421,103190.0,103180.0,0.18695292]
[1746794130070,1.07280421,103190.0,103180.0,0.20210584]
[1746794134373,1.15172746,103190.0,103180.0,0.03030584]
[1746794134675,0.1939026,103160.0,103150.0,0.14791499]
[1746794134867,0.79147235,103160.0,103150.0,0.09369769]
[1746794135065,0.79147235,103160.0,103140.0,0.22954561]
[1746794135066,0.1939214,103150.0,103140.0,0.22954561]
[1746794135275,0.7710679,103150.0,103140.0,0.1976052]
[1746794135472,0.90041735,103150.0,103140.0,0.29454669]
[1746794135675,0.1939402,103140.0,103130.0,0.24705678]
[1746794135881,0.90550995,103140.0,103130.0,0.24705678]
[1746794136077,1.06550995,103140.0,103130.0,0.24705678]
[1746794136573,0.9865867,103140.0,103130.0,0.24705678]
[1746794136774,1.1207867,103140.0,103130.0,0.24705678]
[1746794136975,1.1207867,103140.0,103130.0,0.26125638]
[1746794137177,1.1217867,103140.0,103130.0,0.26125638]
[1746794137782,1.1217867,103140.0,103130.0,0.0711996]
[1746794138281,1.13131964,103140.0,103130.0,0.0711996]
[1746794140579,1.13858964,103140.0,103130.0,0.0711996]
[1746794140784,1.13858964,103140.0,103130.0,0.1286996]
[1746794142085,1.212451,103140.0,103130.0,0.1286996]
[1746794143283,1.212451,103140.0,103130.0,0.0711996]
[1746794144576,0.91087156,103140.0,103130.0,0.42131889]
[1746794144783,0.43607156,103140.0,103130.0,0.86104214]
[1746794145279,0.27607156,103140.0,103130.0,0.78211889]
[1746794145480,0.35499481,103140.0,103130.0,0.58815989]
[1746794145680,0.77509481,103140.0,103130.0,0.22735989]
[1746794145984,0.85401806,103140.0,103130.0,0.22735989]
[1746794146170,0.9401567,103140.0,103130.0,0.22735989]
[1746794146376,1.0511567,103140.0,103130.0,0.0711996]
[1746794146779,1.0511567,103140.0,103130.0,0.08635961]
[1746794146976,1.0511567,103140.0,103130.0,0.07216048]
[1746794156290,0.8933102,103140.0,103130.0,0.07216048]
[1746794156492,1.0511567,103140.0,103130.0,0.07216048]
[1746794157090,1.0511567,103140.0,103130.0,8e-08]
[1746794158491,1.13007995,103140.0,103130.0,8e-08]
[1746794158693,1.0511567,103140.0,103130.0,8e-08]
[1746794158987,1.0511567,103140.0,103110.0,0.30792723]
[1746794158988,1.13007995,103140.0,103110.0,0.00543063]
[1746794159190,0.7126243,103120.0,103110.0,0.01891359]
[1746794159494,0.7126243,103120.0,103110.0,0.11587388]
[1746794159698,0.8754243,103120.0,103110.0,0.11587848]
[1746794160092,0.8754243,103120.0,103110.0,0.17047848]
[1746794160294,1.0354243,103120.0,103110.0,0.17147848]
[1746794160490,1.0354243,103120.0,103110.0,0.18800091]
[1746794160691,1.0354243,103120.0,103110.0,0.18700091]
[1746794160891,1.0364243,103120.0,103110.0,0.19200091]
[1746794161489,1.0364243,103120.0,103110.0,0.09504062]
[1746794161896,1.0364243,103120.0,103110.0,0.09304062]
[1746794162091,1.0374243,103120.0,103110.0,0.15454062]
[1746794164097,1.0374243,103120.0,103110.0,0.14001819]
[1746794164591,0.8795778,103120.0,103110.0,0.14001819]
[1746794164787,1.0374243,103120.0,103110.0,0.12507614]